fUST/lending_fUST_20250211
["ID","MTS","AMOUNT","RATE_DAILY","PERIOD"]
[352719832,1739272246426,-500.0,0.00011095,2]
[352719833,1739272246435,-500.0,0.00011095,2]
[352719834,1739272246445,-500.0,0.00011095,2]
[352719835,1739272246456,-505.33548643,0.00011095,2]
[352719836,1739272246465,-582.77,0.00011095,2]
[352719837,1739272246475,-500.0,0.00011095,2]
[352719838,1739272246484,-500.0,0.00011095,2]
[352719839,1739272246494,-873.66,0.00011095,2]
[352719840,1739272246504,-500.0,0.00011095,2]
[352719841,1739272246514,-500.0,0.00011095,2]
[352719842,1739272246524,-500.0,0.00011095,2]
[352719843,1739272246534,-501.87,0.00011095,2]
[352719844,1739272246544,-500.0,0.00011095,2]
[352719845,1739272246553,-500.0,0.00011095,2]
[352719846,1739272246563,-585.68,0.00011095,2]
[352719847,1739272246572,-500.0,0.00011095,2]
[352719848,1739272246582,-500.0,0.00011095,2]
[352719849,1739272246592,-1162.02,0.00011095,2]
[352719850,1739272246602,-500.0,0.00011095,2]
[352719851,1739272246611,-502.07884143,0.00011095,2]
[352719852,1739272246622,-871.8,0.00011095,2]
[352719853,1739272246633,-500.0,0.00011095,2]
[352719854,1739272246647,-500.0,0.00011095,2]
[352719855,1739272246662,-500.0,0.00011095,2]
[352719856,1739272246675,-500.0,0.00011095,2]
[352719857,1739272246685,-500.0,0.00011095,2]
[352719858,1739272246694,-500.0,0.00011095,2]
[352719859,1739272246704,-500.0,0.00011095,2]
[352719860,1739272246714,-253.50935565,0.00011095,2]
[352719861,1739272246724,-500.0,0.00011095,2]
[352719862,1739272246734,-500.0,0.00011095,2]
[352719863,1739272246743,-500.0,0.00011095,2]
[352719864,1739272246753,-508.04652502,0.00011095,2]
[352719865,1739272246763,-500.0,0.00011095,2]
[352719866,1739272246773,-500.0,0.00011095,2]
[352719867,1739272246783,-500.0,0.00011095,2]
[352719868,1739272246793,-500.0,0.00011095,2]
[352719869,1739272246803,-500.0,0.00011095,2]
[352719870,1739272246814,-500.0,0.00011095,2]
[352719871,1739272246824,-500.0,0.00011095,2]
[352719872,1739272246833,-500.0,0.00011095,2]
[352719873,1739272246843,-500.0,0.00011095,2]
[352719874,1739272246853,-769.79,0.00011095,2]
[352719875,1739272246862,-1416.94,0.00011095,2]
[352719876,1739272246871,-500.0,0.00011095,2]
[352719877,1739272246881,-500.0,0.00011095,2]
[352719878,1739272246891,-1439.16,0.00011095,2]
[352719879,1739272246900,-500.0,0.00011095,2]
[352719880,1739272246910,-500.0,0.00011095,2]
[352719881,1739272246919,-500.0,0.00011095,2]
[352719882,1739272246928,-500.0,0.00011095,2]
[352719883,1739272246938,-500.0,0.00011095,2]
[352719884,1739272246947,-500.0,0.00011095,2]
[352719885,1739272246957,-500.0,0.00011095,2]
[352719886,1739272246967,-514.05350416,0.00011095,2]
[352719887,1739272246977,-500.0,0.00011095,2]
[352719888,1739272246986,-500.0,0.00011095,2]
[352719889,1739272246996,-500.0,0.00011095,2]
[352719890,1739272247011,-1206.54,0.00011095,2]
[352719891,1739272247022,-500.0,0.00011095,2]
[352719892,1739272247032,-500.0,0.00011095,2]
[352719893,1739272247042,-500.0,0.00011095,2]
[352719894,1739272247053,-500.0,0.00011095,2]
[352719895,1739272247063,-500.0,0.00011095,2]
[352719896,1739272247073,-500.0,0.00011095,2]
[352719897,1739272247083,-515.00117721,0.00011095,2]
[352719898,1739272247093,-500.0,0.00011095,2]
[352719899,1739272247103,-614.86289283,0.00011095,2]
[352719900,1739272247112,-833.49,0.00011095,2]
[352719901,1739272247121,-500.0,0.00011095,2]
[352719902,1739272247130,-500.0,0.00011095,2]
[352719903,1739272247139,-1490.82,0.00011095,2]
[352719904,1739272247150,-500.0,0.00011095,2]
[352719905,1739272247159,-500.0,0.00011095,2]
[352719906,1739272247168,-500.0,0.00011095,2]
[352719907,1739272247178,-682.68,0.00011095,2]
[352719908,1739272247188,-500.0,0.00011095,2]
[352719909,1739272247197,-500.0,0.00011095,2]
[352719910,1739272247207,-500.0,0.00011095,2]
[352719911,1739272247216,-500.0,0.00011095,2]
[352719912,1739272247226,-2982.41,0.00011095,2]
[352719913,1739272247237,-500.0,0.00011095,2]
[352719914,1739272247247,-500.0,0.00011095,2]
[352719915,1739272247258,-500.0,0.00011095,2]
[352719916,1739272247268,-500.0,0.00011095,2]
[352719917,1739272247278,-500.0,0.00011095,2]
[352719918,1739272247287,-5694.6,0.00011095,2]
[352719919,1739272247297,-500.0,0.00011095,2]
[352719920,1739272247307,-500.0,0.00011095,2]
[352719921,1739272247316,-500.0,0.00011095,2]
[352719922,1739272247326,-500.0,0.00011095,2]
[352719923,1739272247335,-949.98,0.00011095,2]
[352719924,1739272247345,-2057.9,0.00011095,2]
[352719925,1739272247353,-500.0,0.00011095,2]
[352719926,1739272247363,-500.0,0.00011095,2]
[352719927,1739272247373,-500.0,0.00011095,2]
[352719928,1739272247382,-500.0,0.00011095,2]
[352719929,1739272247391,-500.0,0.00011095,2]
[352719930,1739272247401,-500.0,0.00011095,2]
[352719931,1739272247410,-500.0,0.00011095,2]
[352719932,1739272247421,-925.61,0.00011095,2]
[352719933,1739272247430,-871.94,0.00011095,2]
[352719934,1739272247439,-500.0,0.00011095,2]
[352719935,1739272247449,-500.0,0.00011095,2]
[352719936,1739272247458,-500.0,0.00011095,2]
[352719937,1739272247468,-500.0,0.00011095,2]
[352719938,1739272247478,-3000.97,0.00011095,2]
[352719939,1739272247488,-12460.07,0.00011095,2]
[352719940,1739272247498,-500.0,0.00011095,2]
[352719941,1739272247508,-500.0,0.00011095,2]
[352719942,1739272247519,-500.0,0.00011095,2]
[352719943,1739272247530,-5485.62,0.00011095,2]
[352719944,1739272247540,-508.79691467,0.00011095,2]
[352719945,1739272247550,-500.0,0.00011095,2]
[352719946,1739272247560,-500.0,0.00011095,2]
[352719947,1739272247571,-500.0,0.00011095,2]
[352719948,1739272247581,-3907.33,0.00011095,2]
[352719949,1739272247592,-500.0,0.00011095,2]
[352719950,1739272247602,-500.0,0.00011095,2]
[352719951,1739272247645,-500.0,0.00011095,2]
[352719952,1739272247655,-1100.59,0.00011095,2]
[352719953,1739272247665,-519.02,0.00011095,2]
[352719954,1739272247675,-1105.86,0.00011095,2]
[352719955,1739272247685,-2013.07,0.00011095,2]
[352719956,1739272247695,-500.0,0.00011095,2]
[352719957,1739272247705,-500.0,0.00011095,2]
[352719958,1739272247714,-500.0,0.00011095,2]
[352719959,1739272247723,-500.0,0.00011095,2]
[352719960,1739272247733,-500.0,0.00011095,2]
[352719961,1739272247744,-1127.0,0.00011095,2]
[352719962,1739272247755,-500.0,0.00011095,2]
[352719963,1739272247765,-1439.97,0.00011095,2]
[352719964,1739272247775,-583.86,0.00011095,2]
[352719965,1739272247785,-500.0,0.00011095,2]
[352719966,1739272247795,-500.0,0.00011095,2]
[352719967,1739272247805,-500.0,0.00011095,2]
[352719968,1739272247815,-840.42,0.00011095,2]
[352719969,1739272247825,-541.39,0.00011095,2]
[352719970,1739272247836,-505.2978299,0.00011095,2]
[352719971,1739272247847,-500.0,0.00011095,2]
[352719972,1739272247857,-500.0,0.00011095,2]
[352719973,1739272247867,-500.0,0.00011095,2]
[352719974,1739272247877,-500.0,0.00011095,2]
[352719975,1739272247887,-500.0,0.00011095,2]
[352719976,1739272247897,-500.0,0.00011095,2]
[352719977,1739272247907,-500.0,0.00011095,2]
[352719978,1739272247916,-151.0,0.00011095,2]
[352719979,1739272247926,-39553.44,0.00011095,2]
[352719980,1739272247936,-731.61,0.00011095,2]
[352719981,1739272247946,-1375.93,0.00011095,2]
[352719982,1739272247955,-151.0,0.00011095,2]
[352719983,1739272247966,-948.99,0.00011095,2]
[352719984,1739272247975,-500.0,0.00011095,2]
[352719985,1739272247985,-500.0,0.00011095,2]
[352719986,1739272247995,-500.0,0.00011095,2]
[352719987,1739272248007,-500.0,0.00011095,2]
[352719988,1739272248019,-1854.51,0.00011095,2]
[352719989,1739272248030,-500.0,0.00011095,2]
[352719990,1739272248041,-500.68409964,0.00011095,2]
[352719991,1739272248051,-500.0,0.00011095,2]
[352719992,1739272248062,-500.0,0.00011095,2]
[352719993,1739272248073,-2023.69,0.00011095,2]
[352719994,1739272248084,-500.0,0.00011095,2]
[352719995,1739272248095,-500.0,0.00011095,2]
[352719996,1739272248107,-17317.43,0.00011095,2]
[352719997,1739272248117,-500.0,0.00011095,2]
[352719998,1739272248128,-500.0,0.00011095,2]
[352719999,1739272248139,-500.0,0.00011095,2]
[352720000,1739272248151,-500.0,0.00011095,2]
[352720001,1739272248162,-500.0,0.00011095,2]
[352720002,1739272248173,-502.09487911,0.00011095,2]
[352720003,1739272248184,-1240.75,0.00011095,2]
[352720004,1739272248194,-748.95,0.00011095,2]
[352720005,1739272248205,-500.0,0.00011095,2]
[352720006,1739272248216,-500.0,0.00011095,2]
[352720007,1739272248227,-1055.68,0.00011095,2]
[352720008,1739272248238,-500.0,0.00011095,2]
[352720009,1739272248248,-713.43,0.00011095,2]
[352720010,1739272248259,-500.0,0.00011095,2]
[352720011,1739272248269,-500.0,0.00011095,2]
[352720012,1739272248280,-755.27,0.00011095,2]
[352720013,1739272248290,-920.65,0.00011095,2]
[352720014,1739272248300,-500.0,0.00011095,2]
[352720015,1739272248310,-2302.61,0.00011095,2]
[352720016,1739272248322,-503.38398461,0.00011095,2]
[352720017,1739272248334,-332.62570008,0.00011095,2]
[352720018,1739272248345,-761.17,0.00011095,2]
[352720019,1739272248355,-500.0,0.00011095,2]
[352720020,1739272248365,-514.93224104,0.00011095,2]
[352720021,1739272248375,-500.0,0.00011095,2]
[352720022,1739272248386,-2445.58,0.00011095,2]
[352720023,1739272248396,-500.0,0.00011095,2]
[352720024,1739272248406,-500.0,0.00011095,2]
[352720025,1739272248416,-3314.75,0.00011095,2]
[352720026,1739272248427,-500.0,0.00011095,2]
[352720027,1739272248437,-500.0,0.00011095,2]
[352720028,1739272248449,-500.0,0.00011095,2]
[352720029,1739272248459,-531.3,0.00011095,2]
[352720030,1739272248471,-500.0,0.00011095,2]
[352720031,1739272248482,-500.0,0.00011095,2]
[352720032,1739272248493,-756.96,0.00011095,2]
[352720033,1739272248504,-1394.34,0.00011095,2]
[352720034,1739272248516,-500.0,0.00011095,2]
[352720035,1739272248528,-500.0,0.00011095,2]
[352720036,1739272248538,-500.0,0.00011095,2]
[352720037,1739272248549,-500.0,0.00011095,2]
[352720038,1739272248561,-980.71,0.00011095,2]
[352720039,1739272248571,-1597.85,0.00011095,2]
[352720040,1739272248581,-500.0,0.00011095,2]
[352720041,1739272248591,-500.0,0.00011095,2]
[352720042,1739272248601,-1394.94,0.00011095,2]
[352720043,1739272248610,-500.0,0.00011095,2]
[352720044,1739272248620,-500.0,0.00011095,2]
[352720045,1739272248630,-5809.86,0.00011095,2]
[352720046,1739272248639,-1532.7,0.00011095,2]
[352720047,1739272248649,-500.0,0.00011095,2]
[352720048,1739272248659,-674.25,0.00011095,2]
[352720049,1739272248669,-500.0,0.00011095,2]
[352720050,1739272248679,-500.0,0.00011095,2]
[352720051,1739272248689,-663.02,0.00011095,2]
[352720052,1739272248699,-500.0,0.00011095,2]
[352720053,1739272248709,-500.0,0.00011095,2]
[352720054,1739272248719,-500.0,0.00011095,2]
[352720055,1739272248734,-906.25,0.00011095,2]
[352720056,1739272248744,-500.0,0.00011095,2]
[352720057,1739272248754,-946.74,0.00011095,2]
[352720058,1739272248764,-630.49,0.00011095,2]
[352720059,1739272248774,-500.0,0.00011095,2]
[352720060,1739272248784,-500.0,0.00011095,2]
[352720061,1739272248795,-500.0,0.00011095,2]
[352720062,1739272248805,-2914.98,0.00011095,2]
[352720063,1739272248815,-879.02,0.00011095,2]
[352720064,1739272248824,-609.94068102,0.00011095,2]
[352720065,1739272248833,-649.18,0.00011095,2]
[352720066,1739272248843,-500.0,0.00011095,2]
[352720067,1739272248853,-577.67,0.00011095,2]
[352720068,1739272248863,-855.69,0.00011095,2]
[352720069,1739272248873,-500.0,0.00011095,2]
[352720070,1739272248883,-500.0,0.00011095,2]
[352720071,1739272248893,-1951.14,0.00011095,2]
[352720072,1739272248903,-500.0,0.00011095,2]
[352720073,1739272248913,-374.37194339,0.00011095,2]
[352720074,1739272248924,-500.0,0.00011095,2]
[352720075,1739272248935,-500.0,0.00011095,2]
[352720076,1739272248944,-500.0,0.00011095,2]
[352720077,1739272248954,-500.0,0.00011095,2]
[352720078,1739272248964,-2747.8,0.00011095,2]
[352720079,1739272248975,-896.42,0.00011095,2]
[352720080,1739272248986,-151.0,0.000111,2]
[352720081,1739272248996,-151.0,0.000111,2]
[352720082,1739272249009,-151.0,0.000111,2]
[352720083,1739272249020,-151.0,0.000111,2]
[352720084,1739272249030,-2000.0,0.00011198,2]
[352720085,1739272249041,-151.0,0.000112,2]
[352720086,1739272249051,-151.0,0.000112,2]
[352720087,1739272249062,-151.0,0.000112,2]
[352720088,1739272249073,-151.0,0.000112,2]
[352720089,1739272249083,-151.0,0.000112,2]
[352720090,1739272249095,-500.0,0.00011232,2]
[352720091,1739272249107,-623.49,0.00011232,2]
[352720092,1739272249119,-500.0,0.00011232,2]
[352720093,1739272249130,-516.74417366,0.00011232,2]
[352720094,1739272249141,-500.0,0.00011232,2]
[352720095,1739272249152,-624.49,0.00011232,2]
[352720096,1739272249165,-500.0,0.00011232,2]
[352720097,1739272249176,-500.0,0.00011232,2]
[352720098,1739272249188,-500.0,0.00011232,2]
[352720099,1739272249199,-507.7848895,0.00011232,2]
[352720100,1739272249211,-500.0,0.00011232,2]
[352720101,1739272249223,-500.0,0.00011232,2]
[352720102,1739272249235,-500.0,0.00011232,2]
[352720103,1739272249246,-627.02,0.00011232,2]
[352720104,1739272249259,-500.0,0.00011232,2]
[352720105,1739272249271,-500.0,0.00011232,2]
[352720106,1739272249283,-500.0,0.00011232,2]
[352720107,1739272249295,-502.41539593,0.00011232,2]
[352720108,1739272249306,-500.0,0.00011232,2]
[352720109,1739272249317,-348.88672755,0.00011232,2]
[352720110,1739272249330,-703.22,0.00011232,2]
[352720111,1739272249341,-500.0,0.00011232,2]
[352720112,1739272249353,-500.0,0.00011232,2]
[352720113,1739272249366,-500.0,0.00011232,2]
[352720114,1739272249378,-500.0,0.00011232,2]
[352720115,1739272249392,-500.0,0.00011232,2]
[352720116,1739272249405,-500.0,0.00011232,2]
[352720117,1739272249417,-500.0,0.00011232,2]
[352720118,1739272249427,-500.0,0.00011232,2]
[352720119,1739272249440,-500.0,0.00011232,2]
[352720120,1739272249452,-582.77,0.00011232,2]
[352720121,1739272249463,-500.0,0.00011232,2]
[352720122,1739272249475,-500.0,0.00011232,2]
[352720123,1739272249487,-873.66,0.00011232,2]
[352720124,1739272249499,-500.0,0.00011232,2]
[352720125,1739272249513,-500.0,0.00011232,2]
[352720126,1739272249525,-500.0,0.00011232,2]
[352720127,1739272249536,-501.87,0.00011232,2]
[352720128,1739272249547,-500.0,0.00011232,2]
[352720129,1739272249557,-500.0,0.00011232,2]
[352720130,1739272249568,-585.68,0.00011232,2]
[352720131,1739272249579,-500.0,0.00011232,2]
[352720132,1739272249589,-500.0,0.00011232,2]
[352720133,1739272249600,-1162.02,0.00011232,2]
[352720134,1739272249610,-500.0,0.00011232,2]
[352720135,1739272249620,-871.8,0.00011232,2]
[352720136,1739272249631,-500.0,0.00011232,2]
[352720137,1739272249641,-500.0,0.00011232,2]
[352720138,1739272249651,-500.0,0.00011232,2]
[352720139,1739272249661,-500.0,0.00011232,2]
[352720140,1739272249671,-524.34398088,0.00011232,2]
[352720141,1739272249682,-500.0,0.00011232,2]
[352720142,1739272249691,-500.0,0.00011232,2]
[352720143,1739272249705,-500.0,0.00011232,2]
[352720144,1739272249716,-532.28873682,0.00011232,2]
[352720145,1739272249726,-500.0,0.00011232,2]
[352720146,1739272249736,-500.0,0.00011232,2]
[352720147,1739272249745,-500.0,0.00011232,2]
[352720148,1739272249755,-500.0,0.00011232,2]
[352720149,1739272249765,-500.0,0.00011232,2]
[352720150,1739272249775,-500.0,0.00011232,2]
[352720151,1739272249785,-500.0,0.00011232,2]
[352720152,1739272249794,-500.0,0.00011232,2]
[352720153,1739272249804,-500.0,0.00011232,2]
[352720154,1739272249814,-500.0,0.00011232,2]
[352720155,1739272249823,-769.79,0.00011232,2]
[352720156,1739272249834,-1416.94,0.00011232,2]
[352720157,1739272249843,-500.0,0.00011232,2]
[352720158,1739272249853,-500.0,0.00011232,2]
[352720159,1739272249863,-1439.16,0.00011232,2]
[352720160,1739272249872,-500.0,0.00011232,2]
[352720161,1739272249882,-500.0,0.00011232,2]
[352720162,1739272249892,-500.0,0.00011232,2]
[352720163,1739272249902,-500.0,0.00011232,2]
[352720164,1739272249911,-503.6389107,0.00011232,2]
[352720165,1739272249922,-500.0,0.00011232,2]
[352720166,1739272249932,-814.924764,0.00011232,2]
[352720167,1739272249942,-500.0,0.00011232,2]
[352720168,1739272249952,-814.924764,0.00011232,2]
[352720169,1739272249961,-500.0,0.00011232,2]
[352720170,1739272249971,-500.0,0.00011232,2]
[352720171,1739272249983,-500.0,0.00011232,2]
[352720172,1739272249992,-1206.54,0.00011232,2]
[352720173,1739272250002,-500.0,0.00011232,2]
[352720174,1739272250016,-500.0,0.00011232,2]
[352720175,1739272250026,-500.0,0.00011232,2]
[352720176,1739272250035,-500.0,0.00011232,2]
[352720177,1739272250045,-563.19059213,0.00011232,2]
[352720178,1739272250054,-500.0,0.00011232,2]
[352720179,1739272250064,-500.0,0.00011232,2]
[352720180,1739272250074,-833.49,0.00011232,2]
[352720181,1739272250084,-500.0,0.00011232,2]
[352720182,1739272250094,-606.99705924,0.00011232,2]
[352720183,1739272250103,-151.0,0.00011232,2]
[352720184,1739272250113,-151.0,0.00011232,2]
[352720185,1739272250123,-1490.82,0.00011232,2]
[352720186,1739272250132,-500.0,0.00011232,2]
[352720187,1739272250142,-500.0,0.00011232,2]
[352720188,1739272250151,-500.0,0.00011232,2]
[352720189,1739272250160,-682.68,0.00011232,2]
[352720190,1739272250171,-500.0,0.00011232,2]
[352720191,1739272250181,-500.0,0.00011232,2]
[352720192,1739272250191,-500.0,0.00011232,2]
[352720193,1739272250200,-500.0,0.00011232,2]
[352720194,1739272250211,-2982.41,0.00011232,2]
[352720195,1739272250221,-500.0,0.00011232,2]
[352720196,1739272250231,-500.0,0.00011232,2]
[352720197,1739272250241,-500.0,0.00011232,2]
[352720198,1739272250250,-500.0,0.00011232,2]
[352720199,1739272250259,-500.0,0.00011232,2]
[352720200,1739272250269,-5694.6,0.00011232,2]
[352720201,1739272250279,-500.0,0.00011232,2]
[352720202,1739272250289,-500.0,0.00011232,2]
[352720203,1739272250299,-500.0,0.00011232,2]
[352720204,1739272250310,-500.0,0.00011232,2]
[352720205,1739272250320,-949.98,0.00011232,2]
[352720206,1739272250330,-2057.9,0.00011232,2]
[352720207,1739272250339,-500.0,0.00011232,2]
[352720208,1739272250349,-500.0,0.00011232,2]
[352720209,1739272250359,-500.0,0.00011232,2]
[352720210,1739272250368,-500.0,0.00011232,2]
[352720211,1739272250378,-500.0,0.00011232,2]
[352720212,1739272250387,-500.0,0.00011232,2]
[352720213,1739272250397,-500.0,0.00011232,2]
[352720214,1739272250407,-925.61,0.00011232,2]
[352720215,1739272250417,-871.94,0.00011232,2]
[352720216,1739272250427,-500.0,0.00011232,2]
[352720217,1739272250437,-500.0,0.00011232,2]
[352720218,1739272250446,-500.0,0.00011232,2]
[352720219,1739272250456,-500.0,0.00011232,2]
[352720220,1739272250465,-3000.97,0.00011232,2]
[352720221,1739272250474,-12460.07,0.00011232,2]
[352720222,1739272250484,-531.63969114,0.00011232,2]
[352720223,1739272250493,-500.0,0.00011232,2]
[352720224,1739272250504,-500.0,0.00011232,2]
[352720225,1739272250513,-5485.62,0.00011232,2]
[352720226,1739272250523,-500.0,0.00011232,2]
[352720227,1739272250533,-500.0,0.00011232,2]
[352720228,1739272250543,-500.0,0.00011232,2]
[352720229,1739272250553,-152.091022,0.00011232,2]
[352720230,1739272250563,-3907.33,0.00011232,2]
[352720231,1739272250572,-500.0,0.00011232,2]
[352720232,1739272250581,-500.0,0.00011232,2]
[352720233,1739272250591,-500.0,0.00011232,2]
[352720234,1739272250601,-1100.59,0.00011232,2]
[352720235,1739272250610,-519.02,0.00011232,2]
[352720236,1739272250619,-1105.86,0.00011232,2]
[352720237,1739272250629,-2013.07,0.00011232,2]
[352720238,1739272250639,-500.0,0.00011232,2]
[352720239,1739272250648,-500.0,0.00011232,2]
[352720240,1739272250658,-500.0,0.00011232,2]
[352720241,1739272250668,-504.25330818,0.00011232,2]
[352720242,1739272250677,-500.0,0.00011232,2]
[352720243,1739272250687,-1127.0,0.00011232,2]
[352720244,1739272250696,-500.0,0.00011232,2]
[352720245,1739272250706,-1439.97,0.00011232,2]
[352720246,1739272250715,-583.86,0.00011232,2]
[352720247,1739272250725,-500.0,0.00011232,2]
[352720248,1739272250734,-500.0,0.00011232,2]
[352720249,1739272250743,-500.0,0.00011232,2]
[352720250,1739272250753,-840.42,0.00011232,2]
[352720251,1739272250762,-541.39,0.00011232,2]
[352720252,1739272250772,-500.0,0.00011232,2]
[352720253,1739272250781,-500.0,0.00011232,2]
[352720254,1739272250791,-500.0,0.00011232,2]
[352720255,1739272250800,-500.0,0.00011232,2]
[352720256,1739272250809,-500.0,0.00011232,2]
[352720257,1739272250819,-500.0,0.00011232,2]
[352720258,1739272250828,-500.0,0.00011232,2]
[352720259,1739272250837,-151.0,0.00011232,2]
[352720260,1739272250847,-39553.44,0.00011232,2]
[352720261,1739272250859,-1375.93,0.00011232,2]
[352720262,1739272250868,-151.0,0.00011232,2]
[352720263,1739272250878,-948.99,0.00011232,2]
[352720264,1739272250887,-500.0,0.00011232,2]
[352720265,1739272250897,-731.61,0.00011232,2]
[352720266,1739272250906,-500.0,0.00011232,2]
[352720267,1739272250916,-500.0,0.00011232,2]
[352720268,1739272250925,-500.0,0.00011232,2]
[352720269,1739272250935,-1854.51,0.00011232,2]
[352720270,1739272250944,-500.0,0.00011232,2]
[352720271,1739272250954,-500.0,0.00011232,2]
[352720272,1739272250964,-500.0,0.00011232,2]
[352720273,1739272250974,-2023.69,0.00011232,2]
[352720274,1739272251099,-500.0,0.00011232,2]
[352720275,1739272251109,-500.0,0.00011232,2]
[352720276,1739272251119,-17317.43,0.00011232,2]
[352720277,1739272251128,-500.0,0.00011232,2]
[352720278,1739272251138,-500.0,0.00011232,2]
[352720279,1739272251147,-500.0,0.00011232,2]
[352720280,1739272251156,-500.0,0.00011232,2]
[352720281,1739272251165,-500.0,0.00011232,2]
[352720282,1739272251175,-1240.75,0.00011232,2]
[352720283,1739272251184,-748.95,0.00011232,2]
[352720284,1739272251193,-500.0,0.00011232,2]
[352720285,1739272251202,-500.0,0.00011232,2]
[352720286,1739272251211,-1055.68,0.00011232,2]
[352720287,1739272251221,-502.47100816,0.00011232,2]
[352720288,1739272251230,-713.43,0.00011232,2]
[352720289,1739272251239,-500.0,0.00011232,2]
[352720290,1739272251249,-500.0,0.00011232,2]
[352720291,1739272251259,-755.27,0.00011232,2]
[352720292,1739272251268,-920.65,0.00011232,2]
[352720293,1739272251278,-500.0,0.00011232,2]
[352720294,1739272251287,-2302.61,0.00011232,2]
[352720295,1739272251297,-761.17,0.00011232,2]
[352720296,1739272251306,-500.0,0.00011232,2]
[352720297,1739272251315,-426.91258975,0.00011232,2]
[352720298,1739272251325,-2445.58,0.00011232,2]
[352720299,1739272251334,-500.0,0.00011232,2]
[352720300,1739272251344,-500.0,0.00011232,2]
[352720301,1739272251353,-3314.75,0.00011232,2]
[352720302,1739272251363,-500.0,0.00011232,2]
[352720303,1739272251372,-500.0,0.00011232,2]
[352720304,1739272251381,-500.0,0.00011232,2]
[352720305,1739272251390,-531.3,0.00011232,2]
[352720306,1739272251399,-500.0,0.00011232,2]
[352720307,1739272251408,-500.0,0.00011232,2]
[352720308,1739272251417,-756.96,0.00011232,2]
[352720309,1739272251426,-1394.34,0.00011232,2]
[352720310,1739272251436,-500.0,0.00011232,2]
[352720311,1739272251445,-500.0,0.00011232,2]
[352720312,1739272251455,-500.0,0.00011232,2]
[352720313,1739272251464,-500.0,0.00011232,2]
[352720314,1739272251472,-980.71,0.00011232,2]
[352720315,1739272251482,-1597.85,0.00011232,2]
[352720316,1739272251491,-500.0,0.00011232,2]
[352720317,1739272251500,-504.78290738,0.00011232,2]
[352720318,1739272251510,-1394.94,0.00011232,2]
[352720319,1739272251519,-547.04222477,0.00011232,2]
[352720320,1739272251528,-500.0,0.00011232,2]
[352720321,1739272251537,-5809.86,0.00011232,2]
[352720322,1739272251547,-1532.7,0.00011232,2]
[352720323,1739272251556,-500.0,0.00011232,2]
[352720324,1739272251565,-674.25,0.00011232,2]
[352720325,1739272251574,-500.0,0.00011232,2]
[352720326,1739272251583,-500.0,0.00011232,2]
[352720327,1739272251592,-663.02,0.00011232,2]
[352720328,1739272251601,-500.0,0.00011232,2]
[352720329,1739272251610,-500.0,0.00011232,2]
[352720330,1739272251619,-500.0,0.00011232,2]
[352720331,1739272251628,-906.25,0.00011232,2]